[Event "Early-Titled-Tuesday-Blitz-October-03-2023"]
[Site "Chess.com"]
[Date "2023.10.03"]
[Round "11"]
[White "RamonManon0g"]
[Black "Ducke13"]
[Result "1-0"]
[WhiteElo "2325"]
[BlackElo "2484"]
[TimeControl "180+1"]
[EndTime "10:07:53 PDT"]
[Termination "RamonManon0g won by checkmate"]

1. e4 {[%clk 0:03:00.9]} 1... c5 {[%clk 0:02:53.3]} 2. Nf3 {[%clk 0:03:00.7]}
2... d6 {[%clk 0:02:53.1]} 3. Bb5+ {[%clk 0:03:00.7]} 3... Nd7 {[%clk
0:02:52.7]} 4. a4 {[%clk 0:03:00.3]} 4... Nf6 {[%clk 0:02:51.3]} 5. Nc3 {[%clk
0:03:00.4]} 5... g6 {[%clk 0:02:47.2]} 6. O-O {[%clk 0:03:00.1]} 6... a6 {[%clk
0:02:46.9]} 7. Bc4 {[%clk 0:02:59.7]} 7... Bg7 {[%clk 0:02:47.3]} 8. d3 {[%clk
0:02:59.5]} 8... O-O {[%clk 0:02:45.8]} 9. Bg5 {[%clk 0:02:59.6]} 9... b6 {[%clk
0:02:43.5]} 10. Qd2 {[%clk 0:02:59.5]} 10... Bb7 {[%clk 0:02:43.4]} 11. Bh6
{[%clk 0:02:59.6]} 11... Qc7 {[%clk 0:02:41.7]} 12. Bxg7 {[%clk 0:02:59.5]}
12... Kxg7 {[%clk 0:02:41.7]} 13. Rae1 {[%clk 0:02:58.6]} 13... e5 {[%clk
0:02:40.6]} 14. h3 {[%clk 0:02:57.3]} 14... Nb8 {[%clk 0:02:34.4]} 15. Ng5
{[%clk 0:02:56.1]} 15... h6 {[%clk 0:02:32.5]} 16. Nf3 {[%clk 0:02:55.3]} 16...
Nc6 {[%clk 0:02:31.2]} 17. Nh4 {[%clk 0:02:40.7]} 17... Nd4 {[%clk 0:02:11.9]}
18. f4 {[%clk 0:02:40.4]} 18... Nh5 {[%clk 0:01:59.8]} 19. f5 {[%clk 0:02:15.9]}
19... g5 {[%clk 0:01:59.9]} 20. f6+ {[%clk 0:02:13.6]} 20... Nxf6 {[%clk
0:01:57.2]} 21. Nf5+ {[%clk 0:02:08]} 21... Nxf5 {[%clk 0:01:56.9]} 22. Rxf5
{[%clk 0:02:07.9]} 22... Nh5 {[%clk 0:01:51.9]} 23. Kh2 {[%clk 0:01:56.9]} 23...
f6 {[%clk 0:01:43.7]} 24. g3 {[%clk 0:01:54.5]} 24... Kg6 {[%clk 0:01:26.6]} 25.
Ref1 {[%clk 0:01:53.7]} 25... Bc8 {[%clk 0:01:23.8]} 26. R5f2 {[%clk 0:01:50.3]}
26... Bb7 {[%clk 0:01:20.5]} 27. Qe2 {[%clk 0:01:47.9]} 27... Ng7 {[%clk
0:01:02.3]} 28. Bd5 {[%clk 0:01:36.2]} 28... Rae8 {[%clk 0:00:41.8]} 29. Bxb7
{[%clk 0:01:35.4]} 29... Qxb7 {[%clk 0:00:42.7]} 30. Nd5 {[%clk 0:01:36]} 30...
Re6 {[%clk 0:00:41.1]} 31. g4 {[%clk 0:01:27.4]} 31... b5 {[%clk 0:00:35.1]} 32.
axb5 {[%clk 0:01:26.2]} 32... axb5 {[%clk 0:00:34.6]} 33. Rf3 {[%clk 0:01:21.8]}
33... c4 {[%clk 0:00:34.6]} 34. R1f2 {[%clk 0:01:21.5]} 34... cxd3 {[%clk
0:00:34.3]} 35. cxd3 {[%clk 0:01:22.4]} 35... Ne8 {[%clk 0:00:25.2]} 36. Qf1
{[%clk 0:01:20.3]} 36... Qg7 {[%clk 0:00:25]} 37. Qc1 {[%clk 0:01:10.6]} 37...
Rf7 {[%clk 0:00:24.1]} 38. Qc6 {[%clk 0:01:09.4]} 38... Nc7 {[%clk 0:00:21.4]}
39. Ne3 {[%clk 0:01:04]} 39... d5 {[%clk 0:00:18.6]} 40. Qb7 {[%clk 0:00:59]}
40... dxe4 {[%clk 0:00:16.4]} 41. Qxe4+ {[%clk 0:00:59.9]} 41... f5 {[%clk
0:00:15.7]} 42. gxf5+ {[%clk 0:00:59.9]} 42... Kf6 {[%clk 0:00:12.2]} 43. fxe6+
{[%clk 0:00:59.5]} 43... Kxe6 {[%clk 0:00:13.1]} 44. Rxf7 {[%clk 0:00:59.4]}
44... Qxf7 {[%clk 0:00:09.7]} 45. Rxf7 {[%clk 0:01:00.3]} 45... Kxf7 {[%clk
0:00:10.6]} 46. Qh7+ {[%clk 0:00:59.7]} 46... Ke6 {[%clk 0:00:09.5]} 47. Qxc7
{[%clk 0:01:00.3]} 47... e4 {[%clk 0:00:10.1]} 48. dxe4 {[%clk 0:00:58.8]} 48...
g4 {[%clk 0:00:10.1]} 49. hxg4 {[%clk 0:00:57.5]} 49... b4 {[%clk 0:00:09.9]}
50. Qc5 {[%clk 0:00:56.8]} 50... b3 {[%clk 0:00:09.4]} 51. Qd5+ {[%clk
0:00:57.3]} 51... Kf6 {[%clk 0:00:09.6]} 52. e5+ {[%clk 0:00:56.6]} 52... Kg5
{[%clk 0:00:09.1]} 53. e6+ {[%clk 0:00:57.1]} 53... Kf4 {[%clk 0:00:09.4]} 54.
Ng2+ {[%clk 0:00:55.8]} 54... Kxg4 {[%clk 0:00:07]} 55. Qe4+ {[%clk 0:00:42.1]}
55... Kg5 {[%clk 0:00:06.7]} 56. e7 {[%clk 0:00:38.4]} 56... h5 {[%clk
0:00:07.6]} 57. e8=Q {[%clk 0:00:37.7]} 57... h4 {[%clk 0:00:08.5]} 58. Q8g6#
{[%clk 0:00:37.8]} 1-0

[Event "Early-Titled-Tuesday-Blitz-October-03-2023"]
[Site "Chess.com"]
[Date "2023.10.03"]
[Round "11"]
[White "noblerone"]
[Black "carloseduar100"]
[Result "1-0"]
[WhiteElo "2491"]
[BlackElo "2338"]
[TimeControl "180+1"]
[EndTime "10:07:54 PDT"]
[Termination "noblerone won by checkmate"]

1. d4 {[%clk 0:03:00.9]} 1... d5 {[%clk 0:03:00]} 2. Nf3 {[%clk 0:02:59.2]} 2...
e6 {[%clk 0:02:59.6]} 3. Bf4 {[%clk 0:02:57.8]} 3... c6 {[%clk 0:03:00.5]} 4. e3
{[%clk 0:02:55.7]} 4... Bd6 {[%clk 0:03:01.4]} 5. Bg3 {[%clk 0:02:55.6]} 5...
Bxg3 {[%clk 0:03:02]} 6. hxg3 {[%clk 0:02:55.5]} 6... Nd7 {[%clk 0:03:02.3]} 7.
Nbd2 {[%clk 0:02:54.1]} 7... Qc7 {[%clk 0:03:01.2]} 8. Ng5 {[%clk 0:02:48.2]}
8... Ngf6 {[%clk 0:03:00]} 9. f4 {[%clk 0:02:44.9]} 9... a6 {[%clk 0:02:57.1]}
10. Bd3 {[%clk 0:02:44.9]} 10... h6 {[%clk 0:02:56.7]} 11. Ngf3 {[%clk
0:02:39.5]} 11... c5 {[%clk 0:02:57.1]} 12. c3 {[%clk 0:02:39.8]} 12... b5
{[%clk 0:02:57.2]} 13. Ne5 {[%clk 0:02:39.9]} 13... c4 {[%clk 0:02:56.1]} 14.
Bc2 {[%clk 0:02:39.9]} 14... b4 {[%clk 0:02:56.2]} 15. g4 {[%clk 0:02:12.1]}
15... bxc3 {[%clk 0:02:56.7]} 16. bxc3 {[%clk 0:02:12.1]} 16... Qa5 {[%clk
0:02:57.6]} 17. g5 {[%clk 0:02:09]} 17... Ng8 {[%clk 0:02:58.2]} 18. Nb1 {[%clk
0:02:00.9]} 18... g6 {[%clk 0:02:53.8]} 19. g4 {[%clk 0:01:52.2]} 19... Nxe5
{[%clk 0:02:50.9]} 20. fxe5 {[%clk 0:01:50.5]} 20... Rb8 {[%clk 0:02:44.7]} 21.
Qf3 {[%clk 0:01:38.2]} 21... Rb2 {[%clk 0:02:09.5]} 22. Rh2 {[%clk 0:01:37.9]}
22... Bd7 {[%clk 0:02:04.9]} 23. a4 {[%clk 0:01:16.5]} 23... Rh7 {[%clk
0:01:45.9]} 24. Kd1 {[%clk 0:00:58]} 24... Ne7 {[%clk 0:01:25.4]} 25. Rxh6
{[%clk 0:00:52.2]} 25... Rxh6 {[%clk 0:01:25.8]} 26. gxh6 {[%clk 0:00:53.1]}
26... Kf8 {[%clk 0:00:43.1]} 27. Qf6 {[%clk 0:00:35.9]} 27... Rxc2 {[%clk
0:00:33.6]} 28. Kxc2 {[%clk 0:00:35]} 28... Bxa4+ {[%clk 0:00:33.6]} 29. Kd2
{[%clk 0:00:27.7]} 29... Qb5 {[%clk 0:00:34.2]} 30. Rxa4 {[%clk 0:00:19.7]}
30... Qxa4 {[%clk 0:00:33.7]} 31. h7 {[%clk 0:00:17.2]} 31... Qa2+ {[%clk
0:00:14.3]} 32. Kc1 {[%clk 0:00:17.2]} 32... Ke8 {[%clk 0:00:09.5]} 33. h8=Q+
{[%clk 0:00:17.3]} 33... Kd7 {[%clk 0:00:10.4]} 34. Qxf7 {[%clk 0:00:14.2]}
34... Qe2 {[%clk 0:00:01.4]} 35. Qhe8+ {[%clk 0:00:13.6]} 35... Kc7 {[%clk
0:00:01.2]} 36. Qfxe7+ {[%clk 0:00:14]} 36... Kb6 {[%clk 0:00:02.1]} 37. Qd6+
{[%clk 0:00:14.1]} 37... Ka5 {[%clk 0:00:03]} 38. Qc5# {[%clk 0:00:14]} 1-0

[Event "Early-Titled-Tuesday-Blitz-October-03-2023"]
[Site "Chess.com"]
[Date "2023.10.03"]
[Round "11"]
[White "santosalberto1987"]
[Black "Mesa_1"]
[Result "1-0"]
[WhiteElo "2504"]
[BlackElo "2614"]
[TimeControl "180+1"]
[EndTime "10:08:02 PDT"]
[Termination "santosalberto1987 won by resignation"]

1. e4 {[%clk 0:03:00.9]} 1... d6 {[%clk 0:03:00.4]} 2. d4 {[%clk 0:03:00.7]}
2... Nf6 {[%clk 0:03:00.6]} 3. Nc3 {[%clk 0:03:01]} 3... e5 {[%clk 0:03:01.2]}
4. Nf3 {[%clk 0:03:00.4]} 4... Nbd7 {[%clk 0:03:00.1]} 5. Bc4 {[%clk 0:03:00.1]}
5... Be7 {[%clk 0:02:59.5]} 6. O-O {[%clk 0:03:00]} 6... O-O {[%clk 0:02:58.8]}
7. Re1 {[%clk 0:03:00.4]} 7... c6 {[%clk 0:02:59.2]} 8. a4 {[%clk 0:03:00.3]}
8... h6 {[%clk 0:02:57.8]} 9. h3 {[%clk 0:02:50.6]} 9... Re8 {[%clk 0:02:58.2]}
10. dxe5 {[%clk 0:02:46.7]} 10... dxe5 {[%clk 0:02:56.4]} 11. Be3 {[%clk
0:02:46.8]} 11... Qc7 {[%clk 0:02:51.1]} 12. Qe2 {[%clk 0:02:41]} 12... Bc5
{[%clk 0:02:50.2]} 13. Ba2 {[%clk 0:02:32.1]} 13... Bxe3 {[%clk 0:02:49.1]} 14.
Qxe3 {[%clk 0:02:33]} 14... Nf8 {[%clk 0:02:37.9]} 15. Nh4 {[%clk 0:02:29]}
15... Be6 {[%clk 0:02:36.7]} 16. Bxe6 {[%clk 0:02:27.6]} 16... Nxe6 {[%clk
0:02:37.6]} 17. Nf5 {[%clk 0:02:27.3]} 17... a5 {[%clk 0:02:30.5]} 18. Rad1
{[%clk 0:02:21.1]} 18... Rad8 {[%clk 0:02:28.7]} 19. Qf3 {[%clk 0:02:16.8]}
19... Ng5 {[%clk 0:02:14.3]} 20. Nxh6+ {[%clk 0:01:12.3]} 20... Kh7 {[%clk
0:02:14.2]} 21. Qf5+ {[%clk 0:01:12.3]} 21... Kxh6 {[%clk 0:02:14.2]} 22. h4
{[%clk 0:01:12.8]} 22... Ne6 {[%clk 0:01:34.8]} 23. g4 {[%clk 0:01:12.5]} 23...
Nxg4 {[%clk 0:00:45]} 24. Qxg4 {[%clk 0:01:09.7]} 24... g6 {[%clk 0:00:33.3]}
25. h5 {[%clk 0:01:02.9]} 25... gxh5 {[%clk 0:00:29.5]} 26. Qf5 {[%clk
0:01:02.9]} 26... Rg8+ {[%clk 0:00:25.8]} 27. Kf1 {[%clk 0:00:53]} 27... Rg5
{[%clk 0:00:22.8]} 28. Qf6+ {[%clk 0:00:43.6]} 28... Rg6 {[%clk 0:00:23.2]} 29.
Qh4 {[%clk 0:00:37.4]} 29... Nd4 {[%clk 0:00:18]} 30. Rd3 {[%clk 0:00:30.6]}
30... Rdg8 {[%clk 0:00:18.5]} 31. Ne2 {[%clk 0:00:24.4]} 31... c5 {[%clk
0:00:07.8]} 32. Rg3 {[%clk 0:00:20.6]} 32... Nxe2 {[%clk 0:00:06.9]} 33. Kxe2
{[%clk 0:00:20.3]} 33... Qd7 {[%clk 0:00:05.2]} 34. Qxh5+ {[%clk 0:00:17.7]}
34... Kg7 {[%clk 0:00:03]} 35. Rxg6+ {[%clk 0:00:13.6]} 35... fxg6 {[%clk
0:00:02.7]} 36. Qxe5+ {[%clk 0:00:14]} 36... Kf7 {[%clk 0:00:03.5]} 37. Qxc5
{[%clk 0:00:09.9]} 37... Re8 {[%clk 0:00:03]} 38. f3 {[%clk 0:00:08.5]} 38...
Qh3 {[%clk 0:00:02.3]} 39. Rf1 {[%clk 0:00:07.1]} 39... Qg2+ {[%clk 0:00:01.6]}
40. Rf2 {[%clk 0:00:07.3]} 40... Qg5 {[%clk 0:00:02.5]} 41. Qxg5 {[%clk
0:00:07.1]} 1-0

[Event "Early-Titled-Tuesday-Blitz-October-03-2023"]
[Site "Chess.com"]
[Date "2023.10.03"]
[Round "11"]
[White "stratacticos"]
[Black "NowInChess"]
[Result "0-1"]
[WhiteElo "1754"]
[BlackElo "2210"]
[TimeControl "180+1"]
[EndTime "10:08:04 PDT"]
[Termination "NowInChess won on time"]

1. e4 {[%clk 0:02:59.7]} 1... e6 {[%clk 0:03:00.1]} 2. d4 {[%clk 0:02:59.3]}
2... d5 {[%clk 0:03:00.8]} 3. e5 {[%clk 0:02:59.3]} 3... c5 {[%clk 0:03:00.6]}
4. c3 {[%clk 0:02:59.2]} 4... Nc6 {[%clk 0:03:01.3]} 5. Nf3 {[%clk 0:02:58.5]}
5... Qb6 {[%clk 0:03:01.6]} 6. Bd3 {[%clk 0:02:56.9]} 6... Nh6 {[%clk
0:03:00.7]} 7. O-O {[%clk 0:02:45.7]} 7... cxd4 {[%clk 0:02:55.7]} 8. Bxh6
{[%clk 0:02:36]} 8... gxh6 {[%clk 0:02:54.7]} 9. Qc2 {[%clk 0:02:27.1]} 9...
dxc3 {[%clk 0:02:42.5]} 10. Nxc3 {[%clk 0:02:26.7]} 10... Bd7 {[%clk 0:02:25.7]}
11. a3 {[%clk 0:02:22.3]} 11... Nd4 {[%clk 0:02:14.9]} 12. Nxd4 {[%clk
0:02:21.1]} 12... Qxd4 {[%clk 0:02:15.8]} 13. Rfe1 {[%clk 0:02:16.7]} 13... Bg7
{[%clk 0:02:10.7]} 14. Qe2 {[%clk 0:02:12]} 14... a6 {[%clk 0:02:05.4]} 15. Rad1
{[%clk 0:02:10.5]} 15... Qc5 {[%clk 0:01:37.3]} 16. Rc1 {[%clk 0:02:04.4]} 16...
Qe7 {[%clk 0:01:34.5]} 17. Qc2 {[%clk 0:01:52.2]} 17... O-O {[%clk 0:01:19.1]}
18. Bxh7+ {[%clk 0:01:50.4]} 18... Kh8 {[%clk 0:01:19.7]} 19. Bd3 {[%clk
0:01:46.7]} 19... f6 {[%clk 0:01:16]} 20. exf6 {[%clk 0:01:42.1]} 20... Qxf6
{[%clk 0:01:15.7]} 21. Re3 {[%clk 0:01:31.3]} 21... Rac8 {[%clk 0:00:49.1]} 22.
Rf3 {[%clk 0:01:28]} 22... Qe7 {[%clk 0:00:45.2]} 23. Qe2 {[%clk 0:01:15.3]}
23... e5 {[%clk 0:00:33.6]} 24. Rxf8+ {[%clk 0:01:06.4]} 24... Qxf8 {[%clk
0:00:34.1]} 25. Na2 {[%clk 0:00:57.4]} 25... Rxc1+ {[%clk 0:00:32.3]} 26. Nxc1
{[%clk 0:00:57]} 26... Qf4 {[%clk 0:00:30.6]} 27. Qd1 {[%clk 0:00:50.3]} 27...
e4 {[%clk 0:00:25.4]} 28. Ne2 {[%clk 0:00:48.3]} 28... Qe5 {[%clk 0:00:19.6]}
29. Bc2 {[%clk 0:00:42]} 29... d4 {[%clk 0:00:18.6]} 30. Ba4 {[%clk 0:00:34.3]}
30... Bf5 {[%clk 0:00:14.7]} 31. Ng3 {[%clk 0:00:27.5]} 31... Bg6 {[%clk
0:00:11]} 32. h4 {[%clk 0:00:21.1]} 32... b5 {[%clk 0:00:09.3]} 33. Bb3 {[%clk
0:00:16]} 33... e3 {[%clk 0:00:08.1]} 34. Qe2 {[%clk 0:00:09.4]} 34... exf2+
{[%clk 0:00:06.3]} 35. Kxf2 {[%clk 0:00:08.9]} 35... Qf4+ {[%clk 0:00:03.6]} 36.
Qf3 {[%clk 0:00:06.3]} 36... Qxf3+ {[%clk 0:00:02.1]} 37. gxf3 {[%clk
0:00:04.4]} 37... d3 {[%clk 0:00:03]} 38. Ke3 {[%clk 0:00:03.2]} 38... Bxb2
{[%clk 0:00:03.4]} 39. a4 {[%clk 0:00:02.2]} 39... Bc1+ {[%clk 0:00:03]} 0-1

[Event "Early-Titled-Tuesday-Blitz-October-03-2023"]
[Site "Chess.com"]
[Date "2023.10.03"]
[Round "11"]
[White "Elbebiber"]
[Black "campochess"]
[Result "1-0"]
[WhiteElo "2146"]
[BlackElo "2144"]
[TimeControl "180+1"]
[EndTime "10:08:05 PDT"]
[Termination "Elbebiber won by resignation"]

1. f4 {[%clk 0:03:00.9]} 1... Nf6 {[%clk 0:02:54.3]} 2. Nf3 {[%clk 0:03:00.3]}
2... g6 {[%clk 0:02:53.1]} 3. e3 {[%clk 0:02:56.4]} 3... Bg7 {[%clk 0:02:53]} 4.
Be2 {[%clk 0:02:56.8]} 4... b6 {[%clk 0:02:52.5]} 5. O-O {[%clk 0:02:56.6]} 5...
Bb7 {[%clk 0:02:52.5]} 6. d4 {[%clk 0:02:45.9]} 6... d6 {[%clk 0:02:51.7]} 7. c4
{[%clk 0:02:37.7]} 7... O-O {[%clk 0:02:52.6]} 8. Nc3 {[%clk 0:02:37.8]} 8...
Nbd7 {[%clk 0:02:52.6]} 9. Qc2 {[%clk 0:02:32.6]} 9... c5 {[%clk 0:02:52.4]} 10.
d5 {[%clk 0:02:25.8]} 10... b5 {[%clk 0:02:48.7]} 11. Nxb5 {[%clk 0:02:19.6]}
11... Nb6 {[%clk 0:02:42.8]} 12. Rb1 {[%clk 0:02:11.7]} 12... a6 {[%clk
0:02:41.7]} 13. Nc3 {[%clk 0:02:11.4]} 13... Bc8 {[%clk 0:02:30.5]} 14. e4
{[%clk 0:02:05.7]} 14... Ne8 {[%clk 0:02:27.2]} 15. Be3 {[%clk 0:02:02.7]} 15...
Nc7 {[%clk 0:02:25.9]} 16. Bd3 {[%clk 0:02:02]} 16... Bd7 {[%clk 0:02:21.4]} 17.
Rbe1 {[%clk 0:01:57.7]} 17... e6 {[%clk 0:02:17.1]} 18. Ng5 {[%clk 0:01:46.2]}
18... h6 {[%clk 0:02:15.1]} 19. Nf3 {[%clk 0:01:46.3]} 19... Rb8 {[%clk
0:02:12.8]} 20. b3 {[%clk 0:01:43.6]} 20... Nc8 {[%clk 0:02:05.4]} 21. e5 {[%clk
0:01:36.3]} 21... exd5 {[%clk 0:01:57.3]} 22. Nxd5 {[%clk 0:01:35.1]} 22... Ne6
{[%clk 0:01:48.3]} 23. Be4 {[%clk 0:01:29.7]} 23... Nb6 {[%clk 0:01:46.4]} 24.
exd6 {[%clk 0:01:26.4]} 24... Bc6 {[%clk 0:01:15.8]} 25. Ne7+ {[%clk 0:01:25.5]}
25... Kh7 {[%clk 0:01:14.9]} 26. Nxc6 {[%clk 0:01:25.4]} 26... Qxd6 {[%clk
0:01:15]} 27. Nxb8 {[%clk 0:01:24.3]} 27... Rxb8 {[%clk 0:01:14.8]} 28. Rd1
{[%clk 0:01:23]} 28... Nd4 {[%clk 0:01:13.8]} 29. Bd5 {[%clk 0:01:04.7]} 29...
Nxd5 {[%clk 0:01:08.1]} 30. Bxd4 {[%clk 0:01:04]} 30... cxd4 {[%clk 0:00:57.1]}
31. cxd5 {[%clk 0:00:58.8]} 31... Qxf4 {[%clk 0:00:54.7]} 32. Qd2 {[%clk
0:00:56.4]} 32... Qd6 {[%clk 0:00:51.7]} 33. Nxd4 {[%clk 0:00:52.9]} 33... Qxd5
{[%clk 0:00:51.6]} 34. Nf3 {[%clk 0:00:52.7]} 34... Qc5+ {[%clk 0:00:51]} 35.
Kh1 {[%clk 0:00:52]} 35... Re8 {[%clk 0:00:51]} 36. Rfe1 {[%clk 0:00:50.3]}
36... Rxe1+ {[%clk 0:00:46.6]} 37. Qxe1 {[%clk 0:00:48]} 37... Qc2 {[%clk
0:00:46.4]} 38. Rd2 {[%clk 0:00:45.6]} 38... Qf5 {[%clk 0:00:45]} 39. Re2 {[%clk
0:00:45.5]} 39... Qc5 {[%clk 0:00:41.8]} 40. h3 {[%clk 0:00:42.2]} 40... Bf6
{[%clk 0:00:39.9]} 41. Ne5 {[%clk 0:00:39.9]} 41... Qd5 {[%clk 0:00:31.5]} 42.
Ng4 {[%clk 0:00:39.2]} 42... Bg7 {[%clk 0:00:30.3]} 43. Qf1 {[%clk 0:00:37.8]}
43... Qd6 {[%clk 0:00:30]} 44. Rf2 {[%clk 0:00:35.3]} 44... f5 {[%clk
0:00:28.9]} 45. Ne3 {[%clk 0:00:32.6]} 45... Bd4 {[%clk 0:00:28.5]} 46. Re2
{[%clk 0:00:32.5]} 46... Qg3 {[%clk 0:00:23.1]} 47. Qf3 {[%clk 0:00:29.9]} 47...
Qg5 {[%clk 0:00:21.4]} 48. Nf1 {[%clk 0:00:26.1]} 48... Bg7 {[%clk 0:00:20.8]}
49. Qe3 {[%clk 0:00:25.6]} 49... Qd8 {[%clk 0:00:19.2]} 50. Qe7 {[%clk
0:00:25.2]} 50... Qd1 {[%clk 0:00:18.9]} 51. Re1 {[%clk 0:00:23.8]} 51... Qd3
{[%clk 0:00:18.6]} 52. Qe2 {[%clk 0:00:23.2]} 52... Qd4 {[%clk 0:00:18]} 53. Nh2
{[%clk 0:00:23.4]} 53... h5 {[%clk 0:00:17.1]} 54. Nf3 {[%clk 0:00:23.8]} 54...
Qd6 {[%clk 0:00:16.1]} 55. Qe3 {[%clk 0:00:23.4]} 55... Qg3 {[%clk 0:00:15.9]}
56. Ng5+ {[%clk 0:00:22.4]} 56... Kg8 {[%clk 0:00:15.6]} 57. Qxg3 {[%clk
0:00:22.5]} 1-0

[Event "Early-Titled-Tuesday-Blitz-October-03-2023"]
[Site "Chess.com"]
[Date "2023.10.03"]
[Round "11"]
[White "MMAHDI2013"]
[Black "lefonghua"]
[Result "0-1"]
[WhiteElo "2429"]
[BlackElo "2597"]
[TimeControl "180+1"]
[EndTime "10:08:06 PDT"]
[Termination "lefonghua won on time"]

1. c4 {[%clk 0:03:00]} 1... Nf6 {[%clk 0:03:00]} 2. Nf3 {[%clk 0:02:59]} 2... g6
{[%clk 0:03:00.3]} 3. b3 {[%clk 0:02:58.7]} 3... Bg7 {[%clk 0:03:00.7]} 4. Bb2
{[%clk 0:02:59]} 4... O-O {[%clk 0:03:01.4]} 5. g3 {[%clk 0:02:58.8]} 5... c5
{[%clk 0:03:01.8]} 6. Bg2 {[%clk 0:02:58.4]} 6... Nc6 {[%clk 0:03:02.4]} 7. O-O
{[%clk 0:02:58.2]} 7... d6 {[%clk 0:03:02.7]} 8. d4 {[%clk 0:02:58.2]} 8... Ne4
{[%clk 0:03:02.5]} 9. e3 {[%clk 0:02:51.7]} 9... Bg4 {[%clk 0:02:53.1]} 10. Qc1
{[%clk 0:02:36.9]} 10... Bxf3 {[%clk 0:02:28.7]} 11. Bxf3 {[%clk 0:02:36.1]}
11... Ng5 {[%clk 0:02:28.7]} 12. Bxc6 {[%clk 0:02:35.4]} 12... bxc6 {[%clk
0:02:28.3]} 13. dxc5 {[%clk 0:02:35.2]} 13... dxc5 {[%clk 0:02:19.9]} 14. Bxg7
{[%clk 0:02:32.1]} 14... Kxg7 {[%clk 0:02:20.8]} 15. h4 {[%clk 0:02:28.2]} 15...
Nf3+ {[%clk 0:02:15.2]} 16. Kg2 {[%clk 0:02:26.2]} 16... Ne5 {[%clk 0:02:15.5]}
17. Qc3 {[%clk 0:02:02.5]} 17... f6 {[%clk 0:02:12.5]} 18. Nd2 {[%clk 0:02:00]}
18... Qd3 {[%clk 0:02:05.1]} 19. Qxd3 {[%clk 0:01:58.3]} 19... Nxd3 {[%clk
0:02:06]} 20. Kf3 {[%clk 0:01:54.3]} 20... f5 {[%clk 0:02:00.7]} 21. Ke2 {[%clk
0:01:54]} 21... Rfd8 {[%clk 0:01:59.4]} 22. Nf3 {[%clk 0:01:20.6]} 22... e5
{[%clk 0:01:36.9]} 23. Rfd1 {[%clk 0:01:15.1]} 23... e4 {[%clk 0:01:36.3]} 24.
Ne1 {[%clk 0:01:14.6]} 24... Ne5 {[%clk 0:01:30.3]} 25. Ng2 {[%clk 0:00:47.4]}
25... h6 {[%clk 0:01:18.8]} 26. Ne1 {[%clk 0:00:39.3]} 26... g5 {[%clk
0:01:14.5]} 27. hxg5 {[%clk 0:00:38.9]} 27... hxg5 {[%clk 0:01:15.4]} 28. f3
{[%clk 0:00:34.5]} 28... Kf6 {[%clk 0:00:54.7]} 29. fxe4 {[%clk 0:00:14.4]}
29... fxe4 {[%clk 0:00:54.7]} 30. Rxd8 {[%clk 0:00:10.7]} 30... Rxd8 {[%clk
0:00:54.4]} 31. Rd1 {[%clk 0:00:11.1]} 31... Rxd1 {[%clk 0:00:48.5]} 32. Kxd1
{[%clk 0:00:12]} 32... Kf5 {[%clk 0:00:49.1]} 33. Ke2 {[%clk 0:00:08]} 33... Kg4
{[%clk 0:00:48.2]} 34. Kf2 {[%clk 0:00:08]} 34... Kh3 {[%clk 0:00:46.3]} 35. a3
{[%clk 0:00:03.4]} 35... Ng4+ {[%clk 0:00:41]} 36. Ke2 {[%clk 0:00:02.2]} 36...
Kxg3 {[%clk 0:00:41.3]} 37. b4 {[%clk 0:00:01.4]} 37... cxb4 {[%clk 0:00:37.9]}
38. axb4 {[%clk 0:00:02.3]} 38... Ne5 {[%clk 0:00:36.5]} 39. b5 {[%clk
0:00:01.7]} 39... cxb5 {[%clk 0:00:36.7]} 40. c5 {[%clk 0:00:02]} 40... b4
{[%clk 0:00:32.2]} 41. Nc2 {[%clk 0:00:02.4]} 41... a5 {[%clk 0:00:31.3]} 42.
Nd4 {[%clk 0:00:02.5]} 42... a4 {[%clk 0:00:27.1]} 43. c6 {[%clk 0:00:02]} 43...
Nxc6 {[%clk 0:00:23.5]} 44. Nxc6 {[%clk 0:00:02.9]} 44... b3 {[%clk 0:00:23.9]}
45. Kd2 {[%clk 0:00:01.3]} 45... b2 {[%clk 0:00:23.4]} 46. Kc2 {[%clk
0:00:01.7]} 46... a3 {[%clk 0:00:23.9]} 47. Nd4 {[%clk 0:00:01.8]} 47... Kf2
{[%clk 0:00:23.1]} 48. Nf5 {[%clk 0:00:01.7]} 48... g4 {[%clk 0:00:23]} 49. Kb1
{[%clk 0:00:02.4]} 49... g3 {[%clk 0:00:22.4]} 0-1